fUSD/lending_fUSD_20250622
["ID","MTS","AMOUNT","RATE_DAILY","PERIOD"]
[366947721,1750599044933,-150.0,0.00020817,2]
[366947723,1750599044942,-150.0,0.00020818,2]
[366947725,1750599044952,-150.0,0.00020821,2]
[366947727,1750599044963,-200.0,0.00020823,2]
[366947729,1750599044972,-500.0,0.00020824,2]
[366947732,1750599044982,-200.0,0.00020824,2]
[366947734,1750599044993,-150.0,0.00020826,2]
[366947736,1750599045003,-1000.0,0.00020834,2]
[366947737,1750599045017,-150.0,0.00020835,2]
[366947739,1750599045027,-150.0,0.00020836,2]
[366947742,1750599045037,-243.0,0.00020839,2]
[366947744,1750599045046,-150.0,0.00020839,2]
[366947746,1750599045056,-828.0,0.00020843,2]
[366947748,1750599045065,-150.0,0.00020855,2]
[366947750,1750599045076,-150.0,0.00020865,2]
[366947752,1750599045086,-150.0,0.00020874,2]
[366947754,1750599045096,-150.0,0.00020874,2]
[366947756,1750599045107,-150.0,0.00020881,2]
[366947758,1750599045116,-150.0,0.00020882,2]
[366947760,1750599045126,-4206.29831266,0.00020885,2]
[366947762,1750599045136,-2000.0,0.00020887,2]
[366947764,1750599045146,-2000.0,0.00020887,2]
[366947766,1750599045158,-150.0,0.00020888,2]
[366947768,1750599045168,-150.0,0.00020889,2]
[366947770,1750599045179,-150.0,0.00020891,2]
[366947772,1750599045189,-150.0,0.00020892,2]
[366947774,1750599045198,-150.0,0.00020899,2]
[366947776,1750599045208,-241.33398518,0.000209,2]
[366947778,1750599045221,-155.45556141,0.000209,2]
[366947780,1750599045231,-387.0,0.000209,2]
[366947782,1750599045241,-2752.30375512,0.000209,2]
[366947785,1750599045254,-2247.69624488,0.000209,2]
[366947788,1750599045268,-25118.0533,0.000209,3]
[366947791,1750599045279,-1000.0,0.000209,7]
[366947792,1750599045289,-165.7,0.000209,4]
[366947794,1750599045299,-150.0,0.00020904,2]
[366947796,1750599045309,-150.0,0.00020916,2]
[366947798,1750599045319,-239.24451568,0.00020916,2]
[366947800,1750599045329,-150.0,0.00020917,2]
[366947803,1750599045340,-749.60172745,0.00020918,2]
[366947804,1750599045350,-150.0,0.00020918,2]
[366947807,1750599045360,-150.0,0.00020919,2]
[366947808,1750599045370,-150.0,0.00020923,2]
[366947810,1750599045380,-179.18303486,0.00020924,2]
[366947812,1750599045391,-150.0,0.00020928,2]
[366947815,1750599045401,-243.0,0.00020928,2]
[366947817,1750599045411,-150.0,0.0002093,2]
[366947818,1750599045421,-150.0,0.00020933,2]
[366947821,1750599045432,-1000.0,0.00020939,2]
[366947823,1750599045443,-1000.0,0.0002094,2]
[366947825,1750599045454,-1000.0,0.00020942,2]
[366947827,1750599045464,-150.0,0.00020948,2]
[366947829,1750599045474,-150.0,0.00020951,2]
[366947831,1750599045485,-1243.61905023,0.00020953,2]
[366947841,1750599045581,-150.0,0.00020954,2]
[366947843,1750599045592,-150.0,0.00020954,2]
[366947845,1750599045602,-1000.0,0.00020955,2]
[366947847,1750599045612,-273.97434236,0.00020956,2]
[366947849,1750599045623,-150.0,0.00020963,2]
[366947851,1750599045633,-150.0,0.00020968,2]
[366947853,1750599045643,-1000.0,0.00020968,2]
[366947855,1750599045653,-150.0,0.00020969,2]
[366947857,1750599045663,-801.57849977,0.0002097,2]
[366947859,1750599045674,-151.0,0.00020972,2]
[366947861,1750599045684,-225.804174,0.00020972,2]
[366947863,1750599045694,-151.0,0.00020972,2]
[366947865,1750599045705,-151.0,0.00020972,2]
[366947867,1750599045716,-252.976894,0.00020972,2]
[366947869,1750599045726,-252.976894,0.00020972,2]
[366947871,1750599045736,-244.26379,0.00020972,2]
[366947873,1750599045747,-244.26379,0.00020972,2]
[366947875,1750599045763,-151.0,0.00020972,2]
[366947877,1750599045774,-152.729053,0.00020972,2]
[366947879,1750599045784,-500.0,0.00020973,2]
[366947881,1750599045794,-223.80424554,0.00020973,2]
[366947884,1750599045804,-150.0,0.00020979,2]
[366947887,1750599045815,-150.0,0.0002098,2]
[366947890,1750599045824,-150.0,0.0002098,2]
[366947893,1750599045834,-150.0,0.00020983,2]
[366947896,1750599045844,-150.0,0.00020983,2]
[366947898,1750599045853,-150.0,0.00020984,2]
[366947900,1750599045863,-43474.042564,0.00020985,2]
[366947902,1750599045873,-2444.4395177,0.00020985,2]
[366947903,1750599045883,-11057.4348123,0.00020986,2]
[366947906,1750599045893,-8912.4655871,0.00020986,2]
[366947907,1750599045903,-3530.74130032,0.00020986,2]
[366947972,1750599046647,-334.522,0.00020986,2]
[366947973,1750599046684,-2902.23306148,0.00020986,2]
[366947974,1750599046693,-4622.5271366,0.00020986,2]
[366947975,1750599046703,-2477.5579114,0.00020986,2]
[366947976,1750599046713,-332.5886861,0.00020986,2]
[366947978,1750599046722,-59581.2666163,0.00020986,2]
[366947980,1750599046732,-48023.4337679,0.00020986,2]
[366947982,1750599046742,-6043.25118784,0.00020986,2]
[366947984,1750599046753,-2243.53009293,0.00020986,2]
[366947988,1750599046787,-391.69564442,0.00020986,2]
[366947990,1750599046798,-438.05806838,0.00020986,2]
[366947996,1750599046841,-27349.06592603,0.00020986,2]
[366947998,1750599046852,-17186.13119338,0.00020986,2]
[366948000,1750599046864,-3927.19299325,0.00020986,2]
[366948057,1750599047397,-535.99993,0.00020986,2]
[366948060,1750599047413,-1618.399999,0.00020986,2]
[366948062,1750599047424,-631.53918141,0.00020986,2]
[366948064,1750599047435,-1008.50477416,0.00020986,2]
[366948066,1750599047444,-616.4074658,0.00020986,2]
[366948069,1750599047467,-3150.40487457,0.00020986,2]
[366948074,1750599047578,-357.95081322,0.00020986,2]
[366948075,1750599047597,-9225.17206921,0.00020986,2]
[366948076,1750599047606,-1792.1023745,0.00020986,2]
[366948077,1750599047615,-2072.39666098,0.00020986,2]
[366948078,1750599047639,-2231.69999999,0.00020986,2]
[366953007,1750599269032,3021.062152,0.00017438,2]
[366953020,1750599372555,203.0,0.00016626,2]
[366953021,1750599374672,-500.0,0.00017532,5]
[366953022,1750599391508,-5000.0,0.00037653,36]
[366953023,1750599391540,-5000.0,0.00037653,37]
[366953024,1750599391568,-342.0,0.00037653,120]
[366953025,1750599391594,-209.5,0.00037653,30]
[366953026,1750599391619,-209.7,0.00037653,30]
[366953027,1750599391644,-209.7,0.00037653,30]
[366953028,1750599391669,-1334.0,0.00037653,60]
[366953029,1750599391696,-1336.0,0.00037653,60]
[366953030,1750599391721,-1334.0,0.00037653,60]
[366953031,1750599391746,-1334.0,0.00037653,60]
[366953032,1750599391772,-1334.0,0.00037653,60]
[366953033,1750599391801,-154.0,0.00037653,60]
[366953034,1750599391828,-428.51366138,0.00037653,60]
[366953035,1750599391856,-355.89744584,0.00037653,30]
[366953036,1750599391884,-5000.0,0.00037653,38]
[366953037,1750599391914,-428.36,0.00037653,120]
[366953038,1750599391945,-208.78472641,0.00037653,91]
[366953039,1750599391976,-152.88861299,0.00037653,120]
[366953040,1750599392006,-1521.72033904,0.00037653,120]
[366953041,1750599392046,-152.71850096,0.00037653,120]
[366953042,1750599392077,-445.07359529,0.00037653,120]
[366953043,1750599392107,-197.17435208,0.00037653,30]
[366953044,1750599392135,-429.48445122,0.00037653,120]
[366953045,1750599392162,-166.55438199,0.00037653,30]
[366953046,1750599392190,-151.67578238,0.00037653,31]
[366953047,1750599392218,-172.8603824,0.00037653,30]
[366953048,1750599392246,-514.9432301,0.00037653,30]
[366953049,1750599392273,-540.94361997,0.00037653,120]
[366953050,1750599392303,-336.71173607,0.00037653,120]
[366953051,1750599392331,-160.14249222,0.00037653,30]
[366953052,1750599392357,-189.65779871,0.00037653,30]
[366953053,1750599392383,-515.15942685,0.00037653,120]
[366953054,1750599392410,-2036.72980261,0.00037653,120]
[366953055,1750599392435,-2211.5967264,0.00037653,90]
[366953056,1750599392461,-2308.81624005,0.00037653,30]
[366953057,1750599392485,-627.18743898,0.00037653,60]
[366953058,1750599392510,-1000000.0,0.00037653,60]
[366953059,1750599392539,-10182.8469602,0.00037653,120]
[366953060,1750599392565,-3083.63355237,0.00037653,120]
[366953061,1750599392591,-11691.70701323,0.00037653,120]
[366953062,1750599392617,-13023.89947745,0.00037653,120]
[366953063,1750599392641,-2000.0,0.00037653,120]
[366953064,1750599392667,-38730.94,0.00037653,60]
[366953065,1750599392692,-180.16049001,0.00037653,120]
[366953066,1750599392720,-50000.0,0.00037653,30]
[366953067,1750599392747,-50000.0,0.00037653,31]
[366953068,1750599392775,-50000.0,0.00037653,32]
[366953069,1750599392808,-50000.0,0.00037653,33]
[366953070,1750599392835,-50000.0,0.00037653,34]
[366953071,1750599392862,-50000.0,0.00037653,35]
[366953072,1750599392890,-50000.0,0.00037653,36]
[366953073,1750599392916,-50000.0,0.00037653,37]
[366953074,1750599392942,-50000.0,0.00037653,38]
[366953075,1750599392968,-50000.0,0.00037653,39]
[366953076,1750599392992,-193.45335,0.00037653,120]
[366953077,1750599393020,-200180.17605386,0.00037653,30]
[366953078,1750599393046,-10126.84098236,0.00037653,120]
[366953079,1750599393074,-186.0,0.00037653,120]
[366953080,1750599393104,-1784.0,0.00037653,120]
[366953081,1750599393133,-2779.23,0.00037653,120]
[366953082,1750599393162,-5024.21952237,0.00037653,120]
[366953083,1750599393189,-2992.73945031,0.00037653,120]
[366953084,1750599393217,-548294.1574965,0.00037653,30]
[366953085,1750599393244,-994.99032423,0.00037653,120]
[366953086,1750599393271,-2332.32375211,0.00037653,120]
[366953087,1750599393302,-299.29261505,0.00037653,120]
[366953088,1750599393329,-1896.83,0.00037653,120]
[366953089,1750599393358,-1896.83,0.00037653,120]
[366953090,1750599393386,-1896.83,0.00037653,120]
[366953091,1750599393414,-1896.83,0.00037653,120]
[366953092,1750599393442,-1896.83,0.00037653,120]
[366953093,1750599393472,-1896.83,0.00037653,120]
[366953094,1750599393500,-1896.83,0.00037653,120]
[366953095,1750599393528,-1896.83,0.00037653,120]
[366953096,1750599393559,-1896.83,0.00037653,120]
[366953097,1750599393588,-1896.83,0.00037653,120]
[366953098,1750599393616,-1896.83,0.00037653,120]
[366953099,1750599393643,-1896.83,0.00037653,120]
[366953100,1750599393671,-1896.83,0.00037653,120]
[366953101,1750599393698,-1896.83,0.00037653,120]
[366953102,1750599393725,-1896.83,0.00037653,120]
[366953103,1750599393751,-1896.83,0.00037653,120]
[366953104,1750599393778,-1896.83,0.00037653,120]
[366953105,1750599393808,-1896.83,0.00037653,120]
[366953106,1750599393835,-1896.83,0.00037653,120]
[366953107,1750599393861,-1896.83,0.00037653,120]
[366953108,1750599393888,-1896.83,0.00037653,120]
[366953109,1750599393915,-1896.83,0.00037653,120]
[366953110,1750599393941,-1896.83,0.00037653,120]
[366953111,1750599393968,-1897.06280381,0.00037653,120]
[366953112,1750599402487,-239.47647,0.00022,30]
[366953113,1750599402545,-1500.0,0.0002459,30]
[366953114,1750599402584,-2000.0,0.00024988,60]
[366953115,1750599402612,-513.515921,0.00024988,120]
[366953116,1750599402640,-656.0176079,0.00025,30]
[366953117,1750599402666,-508.7064303,0.00025,30]
[366953118,1750599402692,-500.0,0.00025,30]
[366953119,1750599402717,-500.0,0.00025,30]
[366953120,1750599402743,-512.92996987,0.00025,30]
[366953121,1750599402768,-500.0,0.00025,30]
[366953122,1750599402798,-500.0,0.00025,30]
[366953123,1750599402825,-500.0,0.00025,30]
[366953124,1750599402850,-526.72090658,0.00025,30]
[366953125,1750599402877,-700.0,0.00025,30]
[366953126,1750599402905,-700.0,0.00025,30]
[366953127,1750599402931,-700.0,0.00025,30]
[366953128,1750599402958,-700.0,0.00025,30]
[366953129,1750599402984,-700.0,0.00025,30]
[366953130,1750599403011,-700.0,0.00025,30]
[366953131,1750599403042,-700.0,0.00025,30]
[366953132,1750599403068,-700.0,0.00025,30]
[366953133,1750599403093,-700.0,0.00025,30]
[366953134,1750599403120,-700.0,0.00025,30]
[366953135,1750599403146,-700.0,0.00025,30]
[366953136,1750599403171,-700.0,0.00025,30]
[366953137,1750599403197,-700.0,0.00025,30]
[366953138,1750599403223,-1028.38056505,0.00025,30]
[366953139,1750599403251,-834.42866044,0.00025,30]
[366953140,1750599403281,-434.3,0.00025204,120]
[366953141,1750599403310,-156.0,0.00025998,120]
[366953142,1750599403337,-729.0,0.00026,120]
[366953143,1750599403362,-156.0,0.00026008,120]
[366953144,1750599403388,-729.0,0.0002601,120]
[366953145,1750599403415,-156.0,0.00026018,120]
[366953146,1750599403443,-729.0,0.0002602,120]
[366953147,1750599403475,-2000.0,0.00026488,60]
[366953148,1750599403507,-280.94,0.00027397,80]
[366953149,1750599403541,-434.3,0.00027495,120]
[366953150,1750599403570,-501.74324284,0.00027658,30]
[366953151,1750599403597,-500.0,0.00027658,30]
[366953152,1750599403625,-500.0,0.00027658,30]
[366953153,1750599403652,-502.1437718,0.00027658,30]
[366953154,1750599403682,-500.0,0.00027658,30]
[366953155,1750599403708,-538.67656204,0.00027658,30]
[366953156,1750599403735,-248.58945179,0.00027658,30]
[366953157,1750599403762,-500.0,0.00027658,30]
[366953158,1750599403792,-500.0,0.00027658,30]
[366953159,1750599403819,-500.0,0.00027658,30]
[366953160,1750599403845,-500.0,0.00027658,30]
[366953161,1750599403872,-500.0,0.00027658,30]
[366953162,1750599403898,-500.0,0.00027658,30]
[366953163,1750599403923,-500.0,0.00027658,30]
[366953164,1750599403948,-163.76589991,0.00027658,30]
[366953165,1750599403974,-700.0,0.00027658,30]
[366953166,1750599403998,-700.0,0.00027658,30]
[366953167,1750599404026,-700.0,0.00027658,30]
[366953168,1750599404054,-700.0,0.00027658,30]
[366953169,1750599404081,-700.0,0.00027658,30]
[366953170,1750599404108,-700.0,0.00027658,30]
[366953171,1750599404134,-700.0,0.00027658,30]
[366953172,1750599404160,-700.0,0.00027658,30]
[366953173,1750599404187,-700.0,0.00027658,30]
[366953174,1750599404215,-700.0,0.00027658,30]
[366953175,1750599404241,-700.0,0.00027658,30]
[366953176,1750599404267,-700.0,0.00027658,30]
[366953177,1750599404296,-700.0,0.00027658,30]
[366953178,1750599404322,-700.0,0.00027658,30]
[366953179,1750599404349,-700.0,0.00027658,30]
[366953180,1750599404375,-206.0,0.0002779,30]
[366953181,1750599404405,-2000.0,0.00027988,60]
[366953182,1750599404435,-500.0,0.00028,120]
[366953183,1750599404469,-729.0,0.0002867,120]
[366953184,1750599404497,-729.0,0.0002868,120]
[366953185,1750599404525,-729.0,0.0002869,120]
[366953186,1750599404829,-160.0,0.00029,120]
[366953187,1750599404857,-177.0,0.00029,120]
[366953188,1750599404885,-1333.0,0.00029041,120]
[366953189,1750599404913,-206.0,0.0002931,30]
[366953190,1750599404943,-1332.585771,0.00029488,60]
[366953191,1750599404969,-729.0,0.0002958,120]
[366953192,1750599404997,-729.0,0.0002959,120]
[366953193,1750599405029,-30000.0,0.0003,30]
[366953194,1750599405064,-172.51239964,0.0003,30]
[366953195,1750599405091,-700.0,0.0003,120]
[366953196,1750599405118,-600.0,0.0003,120]
[366953197,1750599405145,-10000.0,0.0003,30]
[366953198,1750599405172,-560.84781723,0.0003,30]
[366953199,1750599405198,-472.0,0.0003,30]
[366953200,1750599405224,-649.48983453,0.0003,120]
[366953201,1750599405250,-834.42866044,0.0003,120]
[366953202,1750599405277,-834.42866044,0.0003,30]
[366953203,1750599405308,-280.94,0.00030822,80]
[366953204,1750599405333,-206.0,0.0003083,30]
[366953205,1750599405359,-472.0,0.00031,30]
[366953206,1750599405387,-156.0,0.0003197,120]
[366953207,1750599405412,-736.11,0.0003198,120]
[366953208,1750599405438,-156.0,0.0003198,120]
[366953209,1750599405464,-729.0,0.0003199,120]
[366953210,1750599405491,-156.0,0.0003199,120]
[366953211,1750599405519,-600.0,0.00032,120]
[366953212,1750599405548,-472.0,0.00032,30]
[366953213,1750599405576,-206.0,0.0003234,30]
[366953214,1750599405602,-1594794.85422729,0.000328,120]
[366953215,1750599405629,-212.0,0.00032847,120]
[366953216,1750599405655,-212.0,0.00032847,120]
[366953217,1750599405681,-212.0,0.00032857,120]
[366953218,1750599405707,-212.0,0.00032857,120]
[366953219,1750599405733,-212.0,0.00032867,120]
[366953220,1750599405760,-212.0,0.00032867,120]
[366953221,1750599405791,-2233.68,0.00032904,30]
[366953222,1750599405818,-1043.0,0.00033,60]
[366953223,1750599405844,-472.0,0.00033,30]
[366953224,1750599405872,-513.0,0.00033345,120]
[366953225,1750599405908,-153.48,0.000335,31]
[366953226,1750599405941,-153.48,0.000335,31]
[366953227,1750599405972,-153.48,0.000335,31]
[366953228,1750599406003,-153.48,0.000335,31]
[366953229,1750599406030,-206.0,0.0003386,30]
[366953230,1750599406060,-370.7600621,0.000339,120]
[366953231,1750599406088,-1333.0,0.00033973,120]
[366953232,1750599406115,-2816.71107364,0.00034,120]
[366953233,1750599406143,-600.0,0.00034,120]
[366953234,1750599406169,-472.0,0.00034,30]
[366953235,1750599406195,-280.94,0.00034247,120]
[366953236,1750599406231,-2261.74679067,0.00034314,30]
[366953237,1750599406256,-1500.0,0.000345,30]
[366953238,1750599406291,-153.48,0.000347,31]
[366953239,1750599406323,-153.48,0.000347,31]
[366953240,1750599406355,-153.48,0.000347,31]
[366953241,1750599406387,-153.48,0.000347,31]
[366953242,1750599406419,-153.48,0.000347,31]
[366953243,1750599406452,-153.48,0.000347,31]
[366953244,1750599406485,-153.48,0.000347,31]
[366953245,1750599406517,-153.48,0.000347,31]
[366953246,1750599406545,-612804.3,0.000348,120]
[366953247,1750599406573,-1000.0,0.000349,120]
[366953248,1750599406601,-1000.0,0.000349,120]
[366953249,1750599406627,-1000.0,0.000349,120]
[366953250,1750599406653,-1000.0,0.000349,120]
[366953251,1750599406678,-1000.0,0.000349,120]
[366953252,1750599406704,-1000.0,0.000349,120]
[366953253,1750599406729,-1000.0,0.000349,120]
[366953254,1750599406754,-1000.0,0.000349,120]
[366953255,1750599406779,-1000.0,0.000349,120]
[366953256,1750599406806,-1000.0,0.000349,120]
[366953257,1750599406832,-4040.97854216,0.00035,120]
[366953258,1750599406857,-3195.67773786,0.00035,120]
[366953259,1750599406882,-268.9678181,0.00035,120]
[366953260,1750599406908,-501.1770745,0.00035,120]
[366953261,1750599406933,-342.61801824,0.00035,120]
[366953262,1750599406957,-472.0,0.00035,30]
[366953263,1750599406982,-153.6318327,0.00035,30]
[366953264,1750599407007,-1128.74060789,0.00035,90]
[366953265,1750599407044,-2261.74679067,0.00035072,32]
[366953266,1750599407071,-160.0,0.000351,120]
[366953267,1750599407098,-177.0,0.000351,120]
[366953268,1750599407126,-206.0,0.0003538,30]
[366953269,1750599407152,-350.0,0.00035581,60]
[366953270,1750599407177,-410.48299609,0.00035616,30]
[366953271,1750599407209,-153.48,0.000358,31]
[366953272,1750599407241,-153.48,0.000358,31]
[366953273,1750599407272,-153.48,0.000358,31]
[366953274,1750599407304,-153.48,0.000358,31]
[366953275,1750599407335,-153.48,0.000358,31]
[366953276,1750599407365,-153.48,0.000358,31]
[366953277,1750599407396,-153.48,0.000358,31]
[366953278,1750599407427,-153.48,0.000358,31]
[366953279,1750599407462,-2261.74679067,0.00035831,33]
[366953280,1750599407489,-1413.63798,0.00035888,30]
[366953281,1750599407514,-10816.3187624,0.0003589,30]
[366953282,1750599407544,-420.0,0.0003589,60]
[366953283,1750599407574,-420.0,0.0003589,60]
[366953284,1750599407603,-420.0,0.0003589,60]
[366953285,1750599407632,-420.0,0.0003589,60]
[366953286,1750599407661,-420.0,0.0003589,60]
[366953287,1750599407689,-420.0,0.0003589,60]
[366953288,1750599407946,-420.0,0.0003589,60]
[366953289,1750599407975,-420.0,0.0003589,60]
[366953290,1750599408003,-420.0,0.0003589,60]
[366953291,1750599408037,-420.0,0.0003589,60]
[366953292,1750599408065,-420.0,0.0003589,60]
[366953293,1750599408093,-420.0,0.0003589,60]
[366953294,1750599408122,-420.0,0.0003589,60]
[366953295,1750599408150,-420.0,0.0003589,60]
[366953296,1750599408178,-420.0,0.0003589,60]
[366953297,1750599408207,-420.0,0.0003589,60]
[366953298,1750599408234,-420.0,0.0003589,60]
[366953299,1750599408260,-420.0,0.0003589,60]
[366953300,1750599408293,-420.0,0.0003589,60]
[366953301,1750599408321,-420.0,0.0003589,60]
[366953302,1750599408349,-420.0,0.0003589,60]
[366953303,1750599408378,-420.0,0.0003589,60]
[366953304,1750599408406,-420.0,0.0003589,60]
[366953305,1750599408434,-420.0,0.0003589,60]
[366953306,1750599408462,-420.0,0.0003589,60]
[366953307,1750599408491,-420.0,0.0003589,60]
[366953308,1750599408520,-420.0,0.0003589,60]
[366953309,1750599408550,-420.0,0.0003589,60]
[366953310,1750599408577,-420.0,0.0003589,60]
[366953311,1750599408606,-420.0,0.0003589,60]
[366953312,1750599408634,-420.0,0.0003589,60]
[366953313,1750599408662,-420.0,0.0003589,60]
[366953314,1750599408689,-420.0,0.0003589,60]
[366953315,1750599408718,-420.0,0.0003589,60]
[366953316,1750599408744,-420.0,0.0003589,60]
[366953317,1750599408772,-420.0,0.0003589,60]
[366953318,1750599408801,-420.0,0.0003589,60]
[366953319,1750599408828,-420.0,0.0003589,60]
[366953320,1750599408854,-420.0,0.0003589,60]
[366953321,1750599408881,-420.0,0.0003589,60]
[366953322,1750599408910,-420.0,0.0003589,60]
[366953323,1750599408937,-420.0,0.0003589,60]
[366953324,1750599408964,-420.0,0.0003589,60]
[366953325,1750599408993,-420.0,0.0003589,60]
[366953326,1750599409021,-420.0,0.0003589,60]
[366953327,1750599409053,-420.0,0.0003589,60]
[366953328,1750599409081,-420.0,0.0003589,60]
[366953329,1750599409110,-420.0,0.0003589,60]
[366953330,1750599409139,-420.0,0.0003589,60]
[366953331,1750599409167,-420.0,0.0003589,60]
[366953332,1750599409195,-420.0,0.0003589,60]
[366953333,1750599409225,-420.0,0.0003589,60]
[366953334,1750599409253,-420.0,0.0003589,60]
[366953335,1750599409282,-420.0,0.0003589,60]
[366953336,1750599409316,-420.0,0.0003589,60]
[366953337,1750599409345,-420.0,0.0003589,60]
[366953338,1750599409375,-420.0,0.0003589,60]
[366953339,1750599409404,-420.0,0.0003589,60]
[366953340,1750599409434,-420.0,0.0003589,60]
[366953341,1750599409464,-420.0,0.0003589,60]
[366953342,1750599409493,-420.0,0.0003589,60]
[366953343,1750599409522,-420.0,0.0003589,60]
[366953344,1750599409553,-420.0,0.0003589,60]
[366953345,1750599409583,-420.0,0.0003589,60]
[366953346,1750599409610,-420.0,0.0003589,60]
[366953347,1750599409637,-420.0,0.0003589,60]
[366953348,1750599409665,-420.0,0.0003589,60]
[366953349,1750599409693,-420.0,0.0003589,60]
[366953350,1750599409721,-420.0,0.0003589,60]
[366953351,1750599409748,-420.0,0.0003589,60]
[366953352,1750599409775,-420.0,0.0003589,60]
[366953353,1750599409803,-420.0,0.0003589,60]
[366953354,1750599409832,-420.0,0.0003589,60]
[366953355,1750599409861,-420.0,0.0003589,60]
[366953356,1750599409889,-420.0,0.0003589,60]
[366953357,1750599409916,-420.0,0.0003589,60]
[366953358,1750599409943,-420.0,0.0003589,60]
[366953359,1750599409973,-420.0,0.0003589,60]
[366953360,1750599410003,-420.0,0.0003589,60]
[366953361,1750599410033,-420.0,0.0003589,60]
[366953362,1750599410067,-420.0,0.0003589,60]
[366953363,1750599410094,-420.0,0.0003589,60]
[366953364,1750599410124,-420.0,0.0003589,60]
[366953365,1750599410152,-420.0,0.0003589,60]
[366953366,1750599410180,-420.0,0.0003589,60]
[366953367,1750599410208,-420.0,0.0003589,60]
[366953368,1750599410235,-420.0,0.0003589,60]
[366953369,1750599410263,-420.0,0.0003589,60]
[366953370,1750599410297,-420.0,0.0003589,60]
[366953371,1750599410326,-420.0,0.0003589,60]
[366953372,1750599410354,-420.0,0.0003589,60]
[366953373,1750599410383,-420.0,0.0003589,60]
[366953374,1750599410412,-420.0,0.0003589,60]
[366953375,1750599410441,-420.0,0.0003589,60]
[366953376,1750599410469,-420.0,0.0003589,60]
[366953377,1750599410498,-420.0,0.0003589,60]
[366953378,1750599410525,-420.0,0.0003589,60]
[366953379,1750599410557,-153.0,0.0003589,60]
[366953380,1750599410585,-153.0,0.0003589,60]
[366953381,1750599410612,-153.0,0.0003589,60]
[366953382,1750599410641,-153.0,0.0003589,60]
[366953383,1750599410669,-153.0,0.0003589,60]
[366953384,1750599410697,-153.0,0.0003589,60]
[366953385,1750599410725,-153.0,0.0003589,60]
[366953386,1750599410753,-153.0,0.0003589,60]
[366953387,1750599410782,-153.0,0.0003589,60]
[366953388,1750599410815,-153.0,0.0003589,60]
[366953389,1750599410844,-153.0,0.0003589,60]
[366953390,1750599410873,-153.0,0.0003589,60]
[366953391,1750599411132,-153.0,0.0003589,60]
[366953392,1750599411163,-153.0,0.0003589,60]
[366953393,1750599411191,-153.0,0.0003589,60]
[366953394,1750599411221,-153.0,0.0003589,60]
[366953395,1750599411250,-153.0,0.0003589,60]
[366953396,1750599411279,-153.0,0.0003589,60]
[366953397,1750599411312,-1013.11598,0.00036,120]
[366953398,1750599411341,-600.0,0.00036,120]
[366953399,1750599411367,-472.0,0.00036,30]
[366953400,1750599411396,-1413.63798,0.00036088,30]
[366953401,1750599411423,-350.0,0.00036266,60]
[366953402,1750599411450,-1413.63798,0.00036288,30]
[366953403,1750599411477,-1311.49,0.00036395,30]
[366953404,1750599411505,-1311.49,0.00036395,30]
[366953405,1750599411532,-1311.49,0.00036395,30]
[366953406,1750599411564,-1311.49,0.00036395,30]
[366953407,1750599411591,-4376.86189341,0.00036445,30]